[Event "VIII Iberoamericano Mexico 2022"]
[Site "Mexico City"]
[Date "2022.02.18"]
[Round "7.46"]
[White "Martin Del Campo C., Jorge"]
[Black "Garcia Lopez, Miguel Angel"]
[Result "1-0"]
[ECO "C65"]
[WhiteElo "2019"]
[BlackElo "2262"]
[Annotator "NA"]
[PlyCount "99"]
[EventDate "2022.02.12"]
[EventType "swiss"]
[EventCountry "MEX"]
[SourceTitle "playchess.com"]
[Source "ChessBase"]
[SourceQuality "1"]
[TimeControl "5400+30"]

1. e4 {[%emt 0:00:04]} e5 {[%emt 0:03:28]} 2. Nf3 {[%emt 0:00:10]} Nc6 {[%emt 0:00:06]} 3. Bb5 {[%emt 0:00:12]} Nf6 {[%emt 0:00:21]} 4. d3 {[%emt 0:00:27]} Bc5 {[%emt 0:00:59]} 5. Bxc6 {[%emt 0:00:19]} dxc6 {[%emt 0:00:17]} 6. Nbd2 {[%emt 0:00:22]} O-O {[%emt 0:08:34]} 7. O-O {[%emt 0:01:54]} Re8 {[%emt 0:02:48]} 8. Nc4 {[%emt 0:01:50]} Nd7 {[%emt 0:02:56]} 9. c3 {[%emt 0:05:25]} Bb6 {[%emt 0:13:30]} 10. a4 {[%emt 0:12:22]} a6 {[%emt 0:03:38]} 11. a5 {[%emt 0:04:47]} Ba7 {[%emt 0:00:07]} 12. Qe2 {[%emt 0:01:31]} f6 {[%emt 0:06:33]} 13. Rd1 {[%emt 0:01:52]} Qe7 {[%emt 0:01:39]} 14. b3 {[%emt 0:03:48]} Nc5 {[%emt 0:04:42]} 15. Ba3 {[%emt 0:05:35]} Qf7 {[%emt 0:01:37]} 16. Rab1 {[%emt 0:07:09]} Ne6 {[%emt 0:04:17]} 17. Bc1 {[%emt 0:01:03]} Nc5 {[%emt 0:11:54]} 18. b4 {[%emt 0:00:48]} Ne6 {[%emt 0:00:28]} 19. Be3 {[%emt 0:00:12]} Bxe3 {[%emt 0:01:06]} 20. fxe3 {[%emt 0:00:57]} Qg6 {[%emt 0:02:01]} 21. Nh4 {[%emt 0:02:30]} Qf7 {[%emt 0:02:12]} 22. Rf1 {[%emt 0:00:36]} Nf8 {[%emt 0:01:02]} 23. Nf5 {[%emt 0:01:52]} Kh8 {[%emt 0:01:32]} 24. Qf3 {[%emt 0:06:50]} Bxf5 {[%emt 0:02:28]} 25. Qxf5 {[%emt 0:00:39]} Qd7 {[%emt 0:00:16]} 26. Rbd1 {[%emt 0:00:40]} Qxf5 {[%emt 0:05:39]} 27. exf5 {[%emt 0:01:27]} Rad8 {[%emt 0:00:54]} 28. Kf2 {[%emt 0:01:20]} Kg8 {[%emt 0:01:51]} 29. d4 {[%emt 0:00:22]} exd4 {[%emt 0:01:11]} 30. cxd4 {[%emt 0:01:19]} g6 {[%emt 0:04:13]} 31. g4 {[%emt 0:01:26]} Rd5 {[%emt 0:03:08]} 32. Ke2 {[%emt 0:01:22]} Kg7 {[%emt 0:00:25]} 33. Kd3 {[%emt 0:01:36]} Rdd8 {[%emt 0:03:02]} 34. e4 {[%emt 0:01:19]} Nd7 {[%emt 0:00:29]} 35. Ke3 {[%emt 0:00:40]} Re7 {[%emt 0:00:25]} 36. Rfe1 {[%emt 0:01:59]} Nf8 {[%emt 0:01:31]} 37. h4 {[%emt 0:02:25]} h6 {[%emt 0:02:21]} 38. e5 {[%emt 0:03:40]} Rd5 {[%emt 0:01:05]} 39. Kf4 {[%emt 0:08:05]} g5+ {[%emt 0:01:25]} 40. hxg5 {[%emt 0:00:32]} hxg5+ {[%emt 0:00:02]} 41. Ke4 {[%emt 0:01:51]} Rb5 {[%emt 0:00:37]} 42. Rb1 {[%emt 0:02:05]} fxe5 {[%emt 0:00:11]} 43. dxe5 {[%emt 0:01:55]} Nd7 {[%emt 0:00:09]} 44. Kd4 {[%emt 0:01:53]} Rd5+ {[%emt 0:00:14]} 45. Kc3 {[%emt 0:02:52]} Nxe5 {[%emt 0:00:14]} 46. Re3 {[%emt 0:01:16]} Kf6 {[%emt 0:01:17]} 47. Rbe1 {[%emt 0:06:30]} c5 {[%emt 0:01:21]} 48. Nxe5 {[%emt 0:00:39]} Rdxe5 {[%emt 0:00:32]} 49. Rxe5 {[%emt 0:00:17]} cxb4+ {[%emt 0:00:06]} 50. Kd4 {[%emt 0:00:37]} 1-0

[Event "VIII Iberoamericano Mexico 2022"]
[Site "Mexico City"]
[Date "2022.02.18"]
[Round "7.47"]
[White "Nava Ruiz, Miguel Angel"]
[Black "Guerrero Rodriguez, Alejandra"]
[Result "1-0"]
[ECO "D40"]
[WhiteElo "1696"]
[BlackElo "2019"]
[Annotator "NA"]
[PlyCount "91"]
[EventDate "2022.02.12"]
[EventType "swiss"]
[EventCountry "MEX"]
[SourceTitle "playchess.com"]
[Source "ChessBase"]
[SourceQuality "1"]
[TimeControl "5400+30"]

1. d4 {[%emt 0:00:04]} e6 {[%emt 0:02:21]} 2. Nf3 {[%emt 0:01:28]} c5 {[%emt 0:00:59]} 3. e3 {[%emt 0:01:16]} Nf6 {[%emt 0:00:48]} 4. Bd3 {[%emt 0:00:46]} Be7 {[%emt 0:00:23]} 5. O-O {[%emt 0:01:17]} O-O {[%emt 0:00:19]} 6. c4 {[%emt 0:02:41]} Nc6 {[%emt 0:03:53]} 7. Nc3 {[%emt 0:05:43]} d5 {[%emt 0:03:32]} 8. cxd5 {[%emt 0:04:06]} exd5 {[%emt 0:01:11]} 9. h3 {[%emt 0:01:23]} a6 {[%emt 0:02:24]} 10. Bd2 {[%emt 0:15:42]} Be6 {[%emt 0:08:19]} 11. Rc1 {[%emt 0:03:35]} Re8 {[%emt 0:01:47]} 12. dxc5 {[%emt 0:01:07]} Bxc5 {[%emt 0:01:12]} 13. Na4 {[%emt 0:03:49]} Bf8 {[%emt 0:06:35]} 14. Nd4 {[%emt 0:06:19]} Ne5 {[%emt 0:02:38]} 15. Nxe6 {[%emt 0:08:23]} Rxe6 {[%emt 0:01:48]} 16. Bf5 {[%emt 0:00:12]} Rc6 {[%emt 0:02:53]} 17. Bc3 {[%emt 0:01:39]} Qe8 {[%emt 0:02:54]} 18. Bd4 {[%emt 0:05:31]} g6 {[%emt 0:08:11]} 19. Bc2 {[%emt 0:04:39]} b5 {[%emt 0:03:27]} 20. Nc3 {[%emt 0:00:11]} Rac8 {[%emt 0:01:00]} 21. a3 {[%emt 0:06:05]} Bg7 {[%emt 0:01:40]} 22. Bb3 {[%emt 0:03:21]} Nc4 {[%emt 0:00:29]} 23. Rc2 {[%emt 0:01:41]} Nd6 {[%emt 0:08:21]} 24. Bxf6 {[%emt 0:01:10]} Bxf6 {[%emt 0:01:59]} 25. Nxd5 {[%emt 0:00:06]} Bg7 {[%emt 0:01:55]} 26. Rxc6 {[%emt 0:00:32]} Rxc6 {[%emt 0:00:05]} 27. Nb4 {[%emt 0:00:51]} Rb6 {[%emt 0:01:03]} 28. Qc2 {[%emt 0:00:41]} a5 {[%emt 0:06:25]} 29. Qc5 {[%emt 0:01:13]} Nc8 {[%emt 0:03:41]} 30. Nd5 {[%emt 0:00:50]} Rb8 {[%emt 0:01:32]} 31. Qc7 {[%emt 0:01:33]} Ra8 {[%emt 0:03:32]} 32. Qc2 {[%emt 0:05:04]} Qe5 {[%emt 0:02:37]} 33. Rb1 {[%emt 0:03:24]} Nd6 {[%emt 0:01:27]} 34. Qc6 {[%emt 0:00:32]} Rc8 {[%emt 0:00:55]} 35. Qd7 {[%emt 0:00:13]} Bf8 {[%emt 0:03:09]} 36. Nf4 {[%emt 0:02:32]} a4 {[%emt 0:00:27]} 37. Bxf7+ {[%emt 0:00:15]} Nxf7 {[%emt 0:04:03]} 38. Qxc8 {[%emt 0:00:05]} Nd6 {[%emt 0:01:31]} 39. Qe6+ {[%emt 0:00:41]} Qxe6 {[%emt 0:00:07]} 40. Nxe6 {[%emt 0:00:03]} Be7 {[%emt 0:00:34]} 41. b3 {[%emt 0:00:35]} Ne4 {[%emt 0:01:47]} 42. bxa4 {[%emt 0:00:15]} bxa4 {[%emt 0:00:06]} 43. Nd4 {[%emt 0:01:16]} Bxa3 {[%emt 0:01:37]} 44. Ra1 {[%emt 0:00:06]} Bb4 {[%emt 0:00:57]} 45. Rxa4 {[%emt 0:00:04]} Be7 {[%emt 0:00:35]} 46. Nc6 {[%emt 0:00:05]} 1-0

[Event "VIII Iberoamericano Mexico 2022"]
[Site "Mexico City"]
[Date "2022.02.18"]
[Round "7.48"]
[White "Jorajuria Mendoza, Algol"]
[Black "Zacarias Martinez, Daniel"]
[Result "1-0"]
[ECO "C90"]
[WhiteElo "2006"]
[BlackElo "1673"]
[Annotator "NA"]
[PlyCount "85"]
[EventDate "2022.02.12"]
[EventType "swiss"]
[EventCountry "MEX"]
[SourceTitle "playchess.com"]
[Source "ChessBase"]
[SourceQuality "1"]
[TimeControl "5400+30"]

1. e4 {[%emt 0:00:03]} e5 {[%emt 0:10:59]} 2. Nf3 {[%emt 0:00:08]} Nc6 {[%emt 0:00:07]} 3. Bb5 {[%emt 0:00:04]} a6 {[%emt 0:00:09]} 4. Ba4 {[%emt 0:00:05]} Nf6 {[%emt 0:00:11]} 5. d3 {[%emt 0:00:15]} d6 {[%emt 0:01:52]} 6. O-O {[%emt 0:00:52]} h6 {[%emt 0:00:14]} 7. c3 {[%emt 0:02:36]} Be7 {[%emt 0:00:24]} 8. Re1 {[%emt 0:00:28]} O-O {[%emt 0:00:30]} 9. Nbd2 {[%emt 0:03:16]} b5 {[%emt 0:00:22]} 10. Bb3 {[%emt 0:01:44]} Na5 {[%emt 0:01:30]} 11. Bc2 {[%emt 0:00:33]} c5 {[%emt 0:00:38]} 12. Nf1 {[%emt 0:01:10]} Re8 {[%emt 0:00:55]} 13. a4 {[%emt 0:06:54]} Bb7 {[%emt 0:04:36]} 14. d4 {[%emt 0:01:38]} Nc6 {[%emt 0:02:05]} 15. d5 {[%emt 0:01:39]} Nb8 {[%emt 0:01:15]} 16. Qe2 {[%emt 0:19:05]} Qb6 {[%emt 0:06:10]} 17. h3 {[%emt 0:04:25]} Nbd7 {[%emt 0:00:19]} 18. Be3 {[%emt 0:02:34]} Bf8 {[%emt 0:02:25]} 19. b4 {[%emt 0:06:27]} Reb8 {[%emt 0:18:27]} 20. N1d2 {[%emt 0:06:43]} Qc7 {[%emt 0:14:32]} 21. Ra2 {[%emt 0:03:12]} c4 {[%emt 0:01:49]} 22. Rea1 {[%emt 0:00:51]} Ne8 {[%emt 0:05:20]} 23. Nh2 {[%emt 0:08:49]} g6 {[%emt 0:01:57]} 24. Nb1 {[%emt 0:02:50]} Qd8 {[%emt 0:00:54]} 25. Na3 {[%emt 0:01:27]} Nc7 {[%emt 0:00:22]} 26. Qd2 {[%emt 0:00:49]} Kh7 {[%emt 0:03:09]} 27. Ng4 {[%emt 0:00:35]} h5 {[%emt 0:05:08]} 28. Nh2 {[%emt 0:00:32]} Be7 {[%emt 0:01:57]} 29. Nf3 {[%emt 0:01:04]} Nf6 {[%emt 0:02:51]} 30. Ng5+ {[%emt 0:02:04]} Kg8 {[%emt 0:01:19]} 31. f4 {[%emt 0:05:07]} Nd7 {[%emt 0:02:54]} 32. Nf3 {[%emt 0:00:48]} Bf6 {[%emt 0:01:50]} 33. fxe5 {[%emt 0:05:30]} Nxe5 {[%emt 0:00:11]} 34. Nd4 {[%emt 0:00:10]} Qd7 {[%emt 0:01:10]} 35. Rf1 {[%emt 0:00:47]} Bg7 {[%emt 0:00:26]} 36. Raa1 {[%emt 0:01:13]} Rf8 {[%emt 0:00:57]} 37. Bg5 {[%emt 0:00:30]} Rae8 {[%emt 0:01:55]} 38. Bf6 {[%emt 0:00:37]} Bxf6 {[%emt 0:02:57]} 39. Rxf6 {[%emt 0:00:06]} Kg7 {[%emt 0:00:17]} 40. Qg5 {[%emt 0:00:54]} Kh7 {[%emt 0:03:06]} 41. Raf1 {[%emt 0:00:54]} Re7 {[%emt 0:00:23]} 42. Nf5 {[%emt 0:00:30]} gxf5 {[%emt 0:00:38]} 43. Rh6# {[%emt 0:00:41]} 1-0

[Event "VIII Iberoamericano Mexico 2022"]
[Site "Mexico City"]
[Date "2022.02.18"]
[Round "7.49"]
[White "Alvarado Rubio, Matias Uziel"]
[Black "Huguet, Sergio"]
[Result "1-0"]
[ECO "B04"]
[WhiteElo "1691"]
[BlackElo "1977"]
[Annotator "NA"]
[PlyCount "105"]
[EventDate "2022.02.12"]
[EventType "swiss"]
[EventCountry "MEX"]
[SourceTitle "playchess.com"]
[Source "ChessBase"]
[SourceQuality "1"]
[TimeControl "5400+30"]

1. e4 {[%emt 0:03:54]} Nf6 {[%emt 0:00:13]} 2. e5 {[%emt 0:01:25]} Nd5 {[%emt 0:00:09]} 3. c4 {[%emt 0:00:16]} Nb6 {[%emt 0:00:17]} 4. d4 {[%emt 0:00:11]} d6 {[%emt 0:00:39]} 5. exd6 {[%emt 0:00:40]} cxd6 {[%emt 0:00:54]} 6. Nf3 {[%emt 0:00:24]} g6 {[%emt 0:01:21]} 7. Be2 {[%emt 0:00:54]} Bg7 {[%emt 0:00:24]} 8. Nc3 {[%emt 0:00:54]} O-O {[%emt 0:01:04]} 9. O-O {[%emt 0:00:11]} Bg4 {[%emt 0:01:30]} 10. h3 {[%emt 0:03:19]} Bxf3 {[%emt 0:03:18]} 11. Bxf3 {[%emt 0:00:08]} Nc6 {[%emt 0:01:47]} 12. c5 {[%emt 0:00:49]} dxc5 {[%emt 0:09:04]} 13. dxc5 {[%emt 0:00:10]} Nd7 {[%emt 0:01:02]} 14. Be3 {[%emt 0:00:54]} Nde5 {[%emt 0:02:44]} 15. Be2 {[%emt 0:01:06]} Qxd1 {[%emt 0:09:56]} 16. Rfxd1 {[%emt 0:00:33]} Rfd8 {[%emt 0:02:12]} 17. f4 {[%emt 0:01:23]} Nd7 {[%emt 0:00:46]} 18. Rac1 {[%emt 0:02:05]} Nf8 {[%emt 0:10:34]} 19. Bf3 {[%emt 0:06:20]} Ne6 {[%emt 0:03:13]} 20. g4 {[%emt 0:10:53]} Rxd1+ {[%emt 0:05:09]} 21. Rxd1 {[%emt 0:00:20]} Rd8 {[%emt 0:02:21]} 22. Rxd8+ {[%emt 0:04:29]} Nexd8 {[%emt 0:01:18]} 23. a3 {[%emt 0:01:07]} Bxc3 {[%emt 0:04:42]} 24. bxc3 {[%emt 0:00:08]} Na5 {[%emt 0:03:09]} 25. Kf2 {[%emt 0:01:28]} Nc4 {[%emt 0:10:06]} 26. Bc1 {[%emt 0:00:16]} Ne6 {[%emt 0:00:16]} 27. Bd5 {[%emt 0:00:51]} Na5 {[%emt 0:01:04]} 28. Be3 {[%emt 0:00:26]} Nc7 {[%emt 0:01:17]} 29. Bf3 {[%emt 0:01:04]} e6 {[%emt 0:02:20]} 30. Bd4 {[%emt 0:04:46]} Kf8 {[%emt 0:02:27]} 31. c6 {[%emt 0:04:29]} Nxc6 {[%emt 0:04:04]} 32. Bxc6 {[%emt 0:00:08]} bxc6 {[%emt 0:00:05]} 33. Bxa7 {[%emt 0:00:12]} Nd5 {[%emt 0:01:02]} 34. c4 {[%emt 0:02:54]} Nxf4 {[%emt 0:00:28]} 35. Kf3 {[%emt 0:00:13]} e5 {[%emt 0:02:03]} 36. h4 {[%emt 0:02:35]} Ke7 {[%emt 0:01:06]} 37. g5 {[%emt 0:01:17]} Kd6 {[%emt 0:04:36]} 38. Ke4 {[%emt 0:01:11]} Ng2 {[%emt 0:00:44]} 39. Bf2 {[%emt 0:01:03]} Nf4 {[%emt 0:00:38]} 40. c5+ {[%emt 0:00:50]} Kc7 {[%emt 0:02:56]} 41. Bg3 {[%emt 0:00:40]} Ne6 {[%emt 0:01:23]} 42. Bxe5+ {[%emt 0:01:01]} Kb7 {[%emt 0:00:07]} 43. Bd6 {[%emt 0:00:54]} Ka6 {[%emt 0:00:29]} 44. Ke5 {[%emt 0:01:40]} Kb5 {[%emt 0:00:15]} 45. a4+ {[%emt 0:01:42]} Kxa4 {[%emt 0:00:32]} 46. Kf6 {[%emt 0:00:07]} Kb5 {[%emt 0:07:46]} 47. Kxf7 {[%emt 0:00:09]} Nxc5 {[%emt 0:00:00]} 48. Kg7 {[%emt 0:00:49]} Ne4 {[%emt 0:00:00]} 49. Bf4 {[%emt 0:00:23]} c5 {[%emt 0:00:00]} 50. Kxh7 {[%emt 0:00:32]} c4 {[%emt 0:00:00]} 51. Kxg6 {[%emt 0:01:06]} c3 {[%emt 0:00:00]} 52. h5 {[%emt 0:00:27]} Kc4 {[%emt 0:00:00]} 53. h6 {[%emt 0:00:12]} 1-0

[Event "VIII Iberoamericano Mexico 2022"]
[Site "Mexico City"]
[Date "2022.02.18"]
[Round "7.50"]
[White "Benito De Leo, Estefania"]
[Black "Herrera Aruca, Jorge Frank"]
[Result "1/2-1/2"]
[ECO "C08"]
[WhiteElo "1657"]
[BlackElo "1964"]
[Annotator "NA"]
[PlyCount "111"]
[EventDate "2022.02.12"]
[EventType "swiss"]
[EventCountry "MEX"]
[SourceTitle "playchess.com"]
[Source "ChessBase"]
[SourceQuality "1"]
[TimeControl "5400+30"]

1. e4 {[%emt 0:00:04]} e6 {[%emt 0:00:27]} 2. d4 {[%emt 0:00:06]} d5 {[%emt 0:00:04]} 3. Nd2 {[%emt 0:00:07]} c5 {[%emt 0:00:06]} 4. exd5 {[%emt 0:00:05]} exd5 {[%emt 0:00:07]} 5. Bb5+ {[%emt 0:00:26]} Nc6 {[%emt 0:00:10]} 6. Qe2+ {[%emt 0:01:17]} Qe7 {[%emt 0:00:07]} 7. dxc5 {[%emt 0:01:13]} Qxe2+ {[%emt 0:00:18]} 8. Nxe2 {[%emt 0:00:15]} Bxc5 {[%emt 0:00:07]} 9. Nb3 {[%emt 0:00:32]} Bb6 {[%emt 0:00:25]} 10. c3 {[%emt 0:02:26]} Nf6 {[%emt 0:00:10]} 11. O-O {[%emt 0:11:07]} O-O {[%emt 0:00:30]} 12. Ned4 {[%emt 0:04:44]} Bd7 {[%emt 0:01:01]} 13. Bd3 {[%emt 0:19:40]} h6 {[%emt 0:00:44]} 14. Re1 {[%emt 0:08:10]} Rfe8 {[%emt 0:00:13]} 15. Bf4 {[%emt 0:01:33]} a5 {[%emt 0:01:52]} 16. Nf3 {[%emt 0:06:49]} Bg4 {[%emt 0:01:04]} 17. Nbd4 {[%emt 0:03:47]} Ne4 {[%emt 0:02:21]} 18. Be3 {[%emt 0:02:02]} Nc5 {[%emt 0:11:58]} 19. Bc2 {[%emt 0:02:00]} Nd7 {[%emt 0:01:21]} 20. Nxc6 {[%emt 0:07:20]} bxc6 {[%emt 0:03:57]} 21. Bxb6 {[%emt 0:00:11]} Bxf3 {[%emt 0:00:54]} 22. Bxa5 {[%emt 0:03:10]} Re5 {[%emt 1:13:34]} 23. Re2 Rxe2 {[%emt 0:00:00]} 24. Rb1 {[%emt 0:25:26]} Re1+ 25. Rxe1 {[%emt 0:00:00]} Rxa5 {[%emt 0:00:00]} 26. gxf3 {[%emt 0:00:00]} Rxa2 {[%emt 0:00:00]} 27. Re8+ {[%emt 0:00:00]} Nf8 {[%emt 0:00:00]} 28. Rb8 {[%emt 0:00:00]} g6 {[%emt 0:00:00]} 29. f4 {[%emt 0:00:00]} Kg7 {[%emt 0:00:00]} 30. f5 {[%emt 0:00:00]} Nd7 {[%emt 0:00:00]} 31. Rb7 {[%emt 0:00:00]} Nc5 {[%emt 0:00:00]} 32. Rb6 {[%emt 0:00:00]} Nd7 {[%emt 0:00:00]} 33. Rb7 {[%emt 0:00:00]} Ne5 {[%emt 0:00:00]} 34. fxg6 {[%emt 0:00:00]} Nxg6 {[%emt 0:00:00]} 35. Bxg6 {[%emt 0:00:00]} Kxg6 {[%emt 0:00:00]} 36. Rb6 {[%emt 0:00:00]} f6 {[%emt 0:00:00]} 37. Rxc6 {[%emt 0:00:00]} Rxb2 {[%emt 0:00:00]} 38. Rd6 {[%emt 0:00:00]} Rb5 {[%emt 0:00:00]} 39. Kf1 {[%emt 0:00:00]} Kf5 {[%emt 0:00:00]} 40. Ke2 {[%emt 0:00:00]} Ke5 {[%emt 0:00:00]} 41. Rd8 {[%emt 0:00:00]} Kf4 {[%emt 0:00:00]} 42. Rh8 {[%emt 0:00:00]} Rb2+ {[%emt 0:00:00]} 43. Ke1 {[%emt 0:00:05]} Rb1+ {[%emt 0:00:00]} 44. Ke2 {[%emt 0:00:19]} Kg5 {[%emt 0:00:00]} 45. Rd8 {[%emt 0:00:34]} Rb5 {[%emt 0:00:00]} 46. Ke3 {[%emt 0:01:03]} Rc5 {[%emt 0:00:00]} 47. Kd4 {[%emt 0:00:46]} Rc4+ {[%emt 0:00:00]} 48. Kd3 {[%emt 0:00:24]} Rc5 {[%emt 0:00:00]} 49. Kd4 {[%emt 0:00:10]} Rc4+ {[%emt 0:00:00]} 50. Kd3 {[%emt 0:00:05]} Rh4 {[%emt 0:14:00]} 51. Rxd5+ {[%emt 0:10:04]} f5 52. c4 Rxh2 {[%emt 0:01:00]} 53. c5 {[%emt 0:01:00]} Rxf2 {[%emt 0:00:30]} 54. c6 {[%emt 0:00:30]} Ra2 {[%emt 0:00:30]} 55. c7 {[%emt 0:00:30]} Ra8 56. Rd8 1/2-1/2

[Event "VIII Iberoamericano Mexico 2022"]
[Site "Mexico City"]
[Date "2022.02.18"]
[Round "7.51"]
[White "Ruiz Ortiz, Cristian Uriel"]
[Black "Francisco Cruz, Yahir Alberto"]
[Result "0-1"]
[ECO "C01"]
[WhiteElo "1525"]
[BlackElo "1949"]
[Annotator "NA"]
[PlyCount "56"]
[EventDate "2022.02.12"]
[EventType "swiss"]
[EventCountry "MEX"]
[SourceTitle "playchess.com"]
[Source "ChessBase"]
[SourceQuality "1"]
[TimeControl "5400+30"]

1. e4 {[%emt 1:31:00]} e6 {[%emt 1:31:00]} 2. d4 {[%emt 0:00:30]} d5 {[%emt 0:00:30]} 3. exd5 {[%emt 0:00:30]} exd5 {[%emt 0:00:30]} 4. Nf3 {[%emt 0:00:30]} Bd6 {[%emt 0:00:30]} 5. Bd3 {[%emt 0:00:30]} Ne7 {[%emt 0:00:30]} 6. O-O {[%emt 0:00:30]} Bg4 {[%emt 0:00:30]} 7. Nbd2 {[%emt 0:00:30]} Nbc6 {[%emt 0:00:30]} 8. c3 {[%emt 0:00:30]} Qd7 {[%emt 0:00:30]} 9. b4 {[%emt 0:00:30]} O-O {[%emt 0:00:30]} 10. Be2 {[%emt 0:00:30]} Rae8 {[%emt 0:00:30]} 11. Nb3 {[%emt 0:00:30]} Ng6 {[%emt 0:00:30]} 12. Be3 {[%emt 0:00:30]} Nce7 {[%emt 0:00:30]} 13. Nfd2 {[%emt 0:00:30]} Bxe2 {[%emt 0:00:30]} 14. Qxe2 {[%emt 0:00:30]} Nf5 {[%emt 0:00:30]} 15. Nf3 {[%emt 0:00:30]} Nxe3 {[%emt 0:00:30]} 16. fxe3 {[%emt 0:00:30]} Bf4 {[%emt 0:00:30]} 17. Nc5 {[%emt 0:00:30]} Qc8 {[%emt 0:00:30]} 18. Qb5 {[%emt 0:00:30]} Bxe3+ {[%emt 0:00:30]} 19. Kh1 {[%emt 0:00:30]} b6 {[%emt 0:00:30]} 20. Nb3 {[%emt 0:00:30]} c6 {[%emt 0:00:30]} 21. Qd3 {[%emt 0:00:30]} Qg4 {[%emt 0:00:30]} 22. Ne5 {[%emt 0:00:30]} Nxe5 {[%emt 0:00:30]} 23. Qxe3 {[%emt 0:00:30]} Nc4 {[%emt 0:00:30]} 24. Qf3 {[%emt 0:00:30]} Qxf3 {[%emt 0:00:30]} 25. Rxf3 {[%emt 0:00:30]} Re2 {[%emt 0:00:30]} 26. a4 {[%emt 0:00:30]} Rfe8 {[%emt 0:00:30]} 27. a5 {[%emt 0:00:30]} Rb2 {[%emt 0:00:30]} 28. Nc1 {[%emt 0:00:30]} Re1+ {[%emt 0:00:30]} 0-1

[Event "VIII Iberoamericano Mexico 2022"]
[Site "Mexico City"]
[Date "2022.02.19"]
[Round "8.26"]
[White "Sandoval Mercado, Carlos"]
[Black "Martin Del Campo C., Jorge"]
[Result "1-0"]
[ECO "E05"]
[WhiteElo "2289"]
[BlackElo "2019"]
[Annotator "ChessBase"]
[PlyCount "167"]
[EventDate "2022.02.12"]
[EventType "swiss"]
[EventCountry "MEX"]
[SourceTitle "playchess.com"]
[Source "ChessBase"]
[SourceQuality "1"]
[TimeControl "5400+30"]

1. d4 {[%emt 0:00:06]} Nf6 {[%emt 0:00:54]} 2. c4 {[%emt 0:00:06]} e6 {[%emt 0:00:08]} 3. Nf3 {[%emt 0:00:06]} d5 {[%emt 0:00:19]} 4. g3 {[%emt 0:00:20]} Be7 {[%emt 0:00:40]} 5. Bg2 {[%emt 0:00:10]} O-O {[%emt 0:00:36]} 6. O-O {[%emt 0:00:08]} dxc4 {[%emt 0:00:15]} 7. Qc2 {[%emt 0:00:26]} a6 {[%emt 0:00:08]} 8. Qxc4 {[%emt 0:01:02]} b5 {[%emt 0:00:08]} 9. Qc2 {[%emt 0:00:04]} Bb7 {[%emt 0:00:04]} 10. Bd2 {[%emt 0:00:12]} Ra7 {[%emt 0:00:28]} 11. Rc1 {[%emt 0:00:15]} Be4 {[%emt 0:00:10]} 12. Qb3 {[%emt 0:00:26]} Nc6 {[%emt 0:00:22]} 13. e3 {[%emt 0:00:36]} Bd5 {[%emt 0:03:06]} 14. Qd1 {[%emt 0:01:27]} Ne4 {[%emt 0:01:10]} 15. Be1 {[%emt 0:11:40]} Qa8 16. Nfd2 {[%emt 0:12:06]} Nb4 {[%emt 0:27:29]} 17. Nxe4 Bxe4 {[%emt 0:01:50]} 18. Bxe4 {[%emt 0:14:27]} Qxe4 {[%emt 0:00:38]} 19. Nd2 {[%emt 0:00:11]} Qg6 {[%emt 0:05:37]} 20. Qb3 {[%emt 0:08:51]} c5 {[%emt 0:02:12]} 21. dxc5 {[%emt 0:07:15]} Nd3 {[%emt 0:02:40]} 22. Rc3 {[%emt 0:00:45]} Nxc5 {[%emt 0:00:15]} 23. Qc2 {[%emt 0:00:04]} Qxc2 {[%emt 0:02:00]} 24. Rxc2 {[%emt 0:00:02]} Nd3 {[%emt 0:00:17]} 25. Nb3 {[%emt 0:02:51]} Bf6 {[%emt 0:02:29]} 26. Rb1 {[%emt 0:00:06]} h6 {[%emt 0:01:00]} 27. Kf1 {[%emt 0:00:09]} e5 {[%emt 0:15:06]} 28. e4 {[%emt 0:08:37]} Be7 {[%emt 0:04:20]} 29. Ke2 {[%emt 0:01:44]} Nxe1 {[%emt 0:01:38]} 30. Rxe1 {[%emt 0:00:07]} a5 {[%emt 0:00:14]} 31. Rd1 {[%emt 0:01:01]} a4 {[%emt 0:00:55]} 32. Nc1 {[%emt 0:00:03]} f6 {[%emt 0:00:41]} 33. h4 {[%emt 0:00:24]} Rb8 {[%emt 0:00:27]} 34. Nd3 {[%emt 0:00:28]} Kf7 {[%emt 0:02:23]} 35. Rdc1 {[%emt 0:02:11]} Rbb7 {[%emt 0:00:52]} 36. h5 {[%emt 0:07:32]} Rd7 {[%emt 0:00:50]} 37. f3 {[%emt 0:01:34]} Ke8 {[%emt 0:01:17]} 38. Rc8+ {[%emt 0:01:25]} Rd8 {[%emt 0:00:16]} 39. R1c7 {[%emt 0:05:46]} Rxc7 {[%emt 0:00:26]} 40. Rxc7 {[%emt 0:00:05]} Rd7 {[%emt 0:00:13]} 41. Rc6 {[%emt 0:00:24]} Rb7 {[%emt 0:00:32]} 42. Nf2 {[%emt 0:05:13]} Kd7 {[%emt 0:00:13]} 43. Rc2 {[%emt 0:00:07]} Rc7 {[%emt 0:00:56]} 44. Rxc7+ {[%emt 0:00:07]} Kxc7 {[%emt 0:00:12]} 45. Nd1 {[%emt 0:04:17]} Kc6 {[%emt 0:00:18]} 46. Ne3 {[%emt 0:01:47]} Bf8 {[%emt 0:01:37]} 47. Kd3 {[%emt 0:00:08]} Kc5 {[%emt 0:02:02]} 48. Kc3 {[%emt 0:00:13]} Bd6 {[%emt 0:01:21]} 49. Nf5 {[%emt 0:00:45]} Bf8 {[%emt 0:00:09]} 50. Nh4 {[%emt 0:00:22]} Kc6 {[%emt 0:00:37]} 51. Kd3 {[%emt 0:00:23]} Bc5 {[%emt 0:01:15]} 52. Nf5 {[%emt 0:00:16]} Bf8 {[%emt 0:00:08]} 53. Ne3 {[%emt 0:00:08]} Kc5 {[%emt 0:00:28]} 54. Nd5 {[%emt 0:00:15]} Bd6 {[%emt 0:00:19]} 55. Kc3 {[%emt 0:00:06]} Kc6 {[%emt 0:00:42]} 56. Kd3 {[%emt 0:00:20]} Kc5 {[%emt 0:00:20]} 57. Ne3 {[%emt 0:02:35]} Be7 {[%emt 0:00:27]} 58. Nf5 {[%emt 0:00:12]} Bf8 {[%emt 0:00:07]} 59. f4 {[%emt 0:00:04]} Kc6 {[%emt 0:01:09]} 60. Ke3 {[%emt 0:00:30]} Kd7 {[%emt 0:00:13]} 61. Kf3 {[%emt 0:01:08]} Ke6 {[%emt 0:00:36]} 62. Ne3 {[%emt 0:00:04]} Kd6 {[%emt 0:00:47]} 63. Nd5 {[%emt 0:05:29]} f5 {[%emt 0:06:19]} 64. Nc3 {[%emt 0:00:04]} fxe4+ {[%emt 0:01:44]} 65. Nxe4+ {[%emt 0:00:22]} Kd5 {[%emt 0:00:43]} 66. Nc3+ {[%emt 0:02:33]} Kc4 {[%emt 0:00:09]} 67. fxe5 {[%emt 0:00:06]} a3 {[%emt 0:02:19]} 68. Nd1 {[%emt 0:00:01]} axb2 {[%emt 0:00:31]} 69. Nxb2+ {[%emt 0:00:01]} Kc3 {[%emt 0:01:33]} 70. a4 {[%emt 0:02:06]} bxa4 {[%emt 0:10:45]} 71. Nxa4+ {[%emt 0:00:01]} Kd4 {[%emt 0:00:08]} 72. Kf4 {[%emt 0:00:02]} Be7 {[%emt 0:01:23]} 73. Kf5 {[%emt 0:00:29]} Bd8 {[%emt 0:00:21]} 74. Nb2 {[%emt 0:01:20]} Bc7 {[%emt 0:00:25]} 75. e6 {[%emt 0:00:17]} Bd6 {[%emt 0:00:09]} 76. Kg6 {[%emt 0:00:42]} Ba3 {[%emt 0:02:10]} 77. Kxg7 {[%emt 0:00:40]} Ke4 {[%emt 0:00:31]} 78. Nc4 {[%emt 0:00:27]} Bc5 {[%emt 0:00:16]} 79. Kf7 {[%emt 0:00:35]} Kf3 {[%emt 0:00:13]} 80. Nd2+ {[%emt 0:00:12]} Kg4 {[%emt 0:00:08]} 81. Ne4 {[%emt 0:00:05]} Bb4 {[%emt 0:00:12]} 82. Nf6+ {[%emt 0:01:06]} Kxg3 {[%emt 0:01:00]} 83. Kg6 {[%emt 0:00:34]} Ba3 {[%emt 0:01:15]} 84. Nd5 {[%emt 0:00:09]} 1-0